bitfinex-derivatives/quotes_SOLF0:USTF0_20251224
["timestamp","ask_amount","ask_price","bid_price","bid_amount"]
[1766598799596,7.35525893,122.38,122.33,62.0]
[1766598799996,7.35525893,122.38,122.33,69.3614]
[1766598800299,0.05525893,122.38,122.33,76.5714]
[1766598800689,0.05525893,122.38,122.33,14.5714]
[1766598803300,7.3567,122.41,122.35,7.21]
[1766598803603,7.3,122.42,122.35,7.21]
[1766598803792,7.3,122.44,122.35,8.60680534]
[1766598803993,14.6555,122.44,122.37,14.5691]
[1766598804296,0.05721431,122.42,122.39,0.05386712]
[1766598805190,7.3,122.46,122.39,7.26386712]
[1766598806297,0.05901368,122.44,122.39,7.26386712]
[1766598806685,0.05901368,122.44,122.39,14.62156712]
[1766598806891,0.05901368,122.44,122.39,7.26386712]
[1766598807095,0.05901368,122.44,122.39,14.62166712]
[1766598809594,7.353,122.48,122.41,8.60680534]
[1766598809795,7.3,122.5,122.41,8.60680534]
[1766598810003,7.3,122.5,122.43,1.39680534]
[1766598810195,7.3,122.5,122.44,7.21]
[1766598810811,0.06050759,122.48,122.46,0.05920763]
[1766598812217,0.06050759,122.48,122.43,7.35]
[1766598812706,0.06050759,122.48,122.43,69.35]
[1766598813309,0.06050759,122.48,122.44,0.05412179]
[1766598815903,0.00050759,122.48,122.44,8.80092713]
[1766598816996,0.00050759,122.48,122.44,14.75882179]
[1766598817202,0.00050759,122.48,122.45,7.35]
[1766598823117,0.00050759,122.48,122.44,0.05412179]
[1766598823514,0.00050759,122.48,122.44,7.40412179]
[1766598831822,0.00050759,122.48,122.44,0.05412179]
[1766598831823,7.07050759,122.48,122.44,0.05412179]
[1766598832421,0.00050759,122.48,122.44,6.92412179]
[1766598834426,0.00050759,122.48,122.45,6.87]
[1766598835531,0.00050759,122.48,122.46,14.2237]
[1766598836432,0.00050759,122.48,122.44,0.05412179]
[1766598836433,0.00050759,122.48,122.44,6.92412179]
[1766598837735,0.00050759,122.48,122.44,14.27882179]
[1766598839128,0.00050759,122.48,122.44,6.92412179]
[1766598845633,14.92310759,122.48,122.44,0.05412179]
[1766598847644,14.9232,122.47,122.44,0.05412179]
[1766598850342,7.57,122.46,122.44,0.00412179]
[1766598850647,7.57,122.45,122.38,7.21]
[1766598851656,0.05361315,122.43,122.4,0.05707802]
[1766598853557,0.05361315,122.43,122.4,7.26707802]
[1766598853748,7.57,122.45,122.4,7.26707802]
[1766598854842,0.06009759,122.44,122.4,7.26707802]
[1766598855043,7.63009759,122.44,122.4,0.05707802]
[1766598856356,7.3556,122.43,122.4,0.05707802]
[1766598856751,7.63009759,122.44,122.4,0.05707802]
[1766598856952,14.98499759,122.44,122.4,0.05707802]
[1766598857753,7.57,122.43,122.4,0.05707802]
[1766598860362,14.9257,122.43,122.37,62.0]
[1766598860563,7.57,122.42,122.37,62.0]
[1766598860954,7.57,122.42,122.37,69.21]
[1766598861154,7.57,122.42,122.37,7.21]
[1766598861358,0.05980545,122.41,122.38,0.05494575]
[1766598865858,7.62980545,122.41,122.38,0.05494575]
[1766598866061,7.62980545,122.41,122.38,0.00494575]
[1766598866463,14.98650545,122.41,122.38,0.00494575]
[1766598868267,7.62980545,122.41,122.38,0.00494575]
[1766598870962,2.17801611,122.45,122.38,7.21494575]
[1766598870963,7.57,122.45,122.38,7.21494575]
[1766598871469,14.855,122.44,122.38,7.21494575]
[1766598871775,14.855,122.44,122.38,7.21]
[1766598871974,0.05492256,122.42,122.4,0.05268376]
[1766598880375,0.05492256,122.42,122.4,7.43268376]
[1766598880376,0.00492256,122.42,122.4,7.43268376]
[1766598882378,0.00492256,122.42,122.4,0.05268376]
[1766598889394,7.36112256,122.42,122.4,0.05268376]
[1766598889599,0.00492256,122.42,122.36,7.52]
[1766598890699,7.3575,122.4,122.38,0.06006658]
[1766598892104,7.3567,122.41,122.38,0.06006658]
[1766598893299,7.36102256,122.42,122.38,7.58006658]
[1766598893505,0.00492256,122.42,122.38,7.58006658]
[1766598894295,0.00492256,122.42,122.38,0.06006658]
[1766598895801,7.3568,122.41,122.38,0.06006658]
[1766598897801,14.3068,122.41,122.38,0.06006658]
[1766598900400,6.95,122.4,122.33,7.52]
[1766598900804,6.95,122.4,122.33,8.91673916]
[1766598901500,0.05646381,122.38,122.35,0.05728814]
[1766598901695,7.3579,122.4,122.35,7.49728814]
[1766598901898,7.19,122.4,122.35,0.05728814]
[1766598902293,7.3583,122.39,122.35,0.05728814]
[1766598902699,0.06126393,122.38,122.35,0.05728814]
[1766598903508,14.60986393,122.38,122.35,0.05728814]
[1766598903899,14.60986393,122.38,122.32,7.44]
[1766598904908,14.60986393,122.38,122.34,0.06261489]
[1766598906908,7.19,122.37,122.3,7.44]
[1766598907204,8.58673916,122.37,122.28,7.44]
[1766598907410,7.19,122.35,122.28,7.44]
[1766598907907,0.05365005,122.33,122.29,7.44]
[1766598909301,0.00365005,122.33,122.31,7.44]
[1766598909605,7.19,122.37,122.31,7.44]
[1766598910111,7.19,122.37,122.31,14.8026]
[1766598910614,0.05880162,122.35,122.33,0.05339019]
[1766598919827,7.19,122.39,122.33,14.85469019]
[1766598920323,7.19,122.39,122.33,7.49339019]
[1766598920712,7.19,122.39,122.34,7.3607]
[1766598920917,0.05349082,122.38,122.34,7.3607]
[1766598924326,7.24349082,122.38,122.34,7.3607]
[1766598925331,7.24349082,122.38,122.33,7.49339019]
[1766598926434,7.24349082,122.38,122.33,0.05339019]
[1766598927326,7.24349082,122.38,122.33,7.49339019]
[1766598928133,7.24349082,122.38,122.33,0.05339019]
[1766598930326,14.5492,122.37,122.33,0.05339019]
[1766598932433,7.3597,122.36,122.33,0.05339019]
[1766598934133,7.3597,122.36,122.29,1.39673916]
[1766598934134,7.09,122.36,122.29,7.11]
[1766598935034,0.05276063,122.34,122.31,0.05819386]
[1766598939144,14.50376063,122.34,122.31,0.05819386]
[1766598940243,7.09,122.33,122.27,14.4751]
[1766598941343,0.05780576,122.31,122.28,7.36]
[1766598962971,7.3609,122.34,122.28,7.42096739]
[1766598963174,7.3609,122.34,122.28,7.36]
[1766598963468,14.8509,122.34,122.28,7.36]
[1766598963965,0.05981231,122.32,122.3,0.06035036]
[1766598968665,7.3609,122.34,122.3,6.93035036]
[1766598968880,7.49,122.39,122.31,6.87]
[1766598969360,2.1848044,122.41,122.31,6.87]
[1766598969361,7.49,122.37,122.31,6.87]
[1766598969758,0.05182752,122.35,122.33,0.05240225]
[1766598969966,7.54182752,122.35,122.33,0.00240225]
[1766598970460,14.90222752,122.35,122.33,0.00240225]
[1766598970666,7.49,122.34,122.33,0.00240225]
[1766598974971,7.49,122.32,122.27,62.0]
[1766598975162,7.49,122.32,122.26,6.87]
[1766598976068,0.05637857,122.3,122.28,0.06211764]
[1766598978571,14.90977857,122.3,122.25,72.1499276]
[1766598978777,7.54637857,122.3,122.23,10.1499276]
[1766598979279,7.54637857,122.3,122.22,10.1499276]
[1766598979468,7.49,122.3,122.22,10.1499276]
[1766598979665,0.05556838,122.27,122.22,10.1499276]
[1766598980569,0.05556838,122.27,122.23,2.48]
[1766598981677,0.05556838,122.27,122.23,64.48]
[1766598981881,0.05556838,122.27,122.24,2.51]
[1766598982069,7.49,122.3,122.24,2.57139717]
[1766598982476,14.8537,122.3,122.24,2.57139717]
[1766598983078,0.05890937,122.28,122.24,2.57139717]
[1766598985874,0.05890937,122.28,122.24,9.93819717]
[1766598986776,0.05890937,122.28,122.24,0.06139717]
[1766598986777,7.54890937,122.28,122.24,0.06139717]
[1766598995387,7.54890937,122.28,122.24,7.42829717]
[1766598995589,0.05890937,122.28,122.24,1.95139717]
[1766598995979,0.05890937,122.28,122.26,7.3657]
[1766598997388,6.96,122.3,122.26,7.3657]
[1766598997587,6.96,122.3,122.25,9.2163]
[1766598997885,6.96,122.3,122.25,1.85]
[1766598998185,6.96,122.3,122.23,9.177]
[1766598998387,0.05869308,122.28,122.25,0.05846925]
[1766598999287,6.96,122.3,122.25,1.83846925]
[1766599000387,0.06050154,122.29,122.25,1.83846925]
[1766599001190,0.06050154,122.29,122.25,0.05846925]
[1766599001399,7.02050154,122.29,122.25,0.05846925]
[1766599002292,6.7,122.28,122.21,105.6284]
[1766599002584,6.7,122.28,122.22,1.66]
[1766599003179,0.05580676,122.26,122.24,0.06232907]
[1766599017304,6.7,122.28,122.24,0.06232907]
[1766599018399,6.7602798,122.27,122.24,0.06232907]
[1766599018594,6.75852309,122.27,122.24,0.05380161]
[1766599019003,0.05852309,122.27,122.24,0.05380161]
[1766599023304,6.52852309,122.27,122.24,0.00380161]
[1766599023809,6.47,122.24,122.18,0.99]
[1766599024709,0.0549884,122.22,122.2,0.05151941]
[1766599026309,6.5249884,122.22,122.16,7.3717]
[1766599027309,6.5249884,122.22,122.18,0.00244147]
[1766599028309,6.47,122.19,122.09,1.39938466]
[1766599028500,6.47,122.19,122.06,4.93593812]
[1766599028501,6.47,122.19,122.12,0.97]
[1766599028810,6.47,122.19,122.13,7.3735]
[1766599029317,0.0601623,122.17,122.13,7.3735]
[1766599029504,0.0601623,122.17,122.13,0.95]
[1766599029708,6.47,122.25,122.15,0.95]
[1766599030718,6.53257735,122.21,122.15,0.95]
[1766599031407,6.53257735,122.21,122.15,8.3222]
[1766599032313,6.53257735,122.21,122.13,0.9]
[1766599032508,0.05245347,122.18,122.13,0.9]
[1766599032713,6.52245347,122.18,122.12,8.77328466]
[1766599033310,6.52245347,122.18,122.1,8.77458466]
[1766599033520,0.06006952,122.15,122.1,8.77458466]
[1766599033821,0.06006952,122.15,122.1,9.62458466]
[1766599035419,0.06006952,122.15,122.11,62.0]
[1766599036420,0.06006952,122.15,122.11,70.1544]
[1766599036621,6.47,122.18,122.11,70.1544]
[1766599037415,6.47,122.18,122.12,7.374]
[1766599037619,0.06096931,122.16,122.14,0.06158853]
[1766599040728,6.47,122.18,122.14,0.06158853]
[1766599041829,0.05893509,122.17,122.14,0.06158853]
[1766599043220,6.47,122.2,122.14,8.83377319]
[1766599043420,6.47,122.2,122.14,1.46097319]
[1766599044228,0.05792282,122.18,122.14,1.46097319]
[1766599044822,0.05792282,122.18,122.14,0.06158853]
[1766599045025,6.52792282,122.18,122.14,0.06158853]
[1766599049327,0.05792282,122.18,122.15,0.51]
[1766599049532,6.47,122.21,122.15,0.51]
[1766599050527,0.06186403,122.19,122.17,0.05406007]
[1766599051633,6.6,122.23,122.17,0.45406007]
[1766599052528,13.9663,122.25,122.18,9.08988466]
[1766599052729,6.6,122.24,122.18,9.08988466]
[1766599053538,0.06164592,122.22,122.2,0.05437653]
[1766599054440,0.06164592,122.22,122.2,7.42367653]
[1766599054638,6.6,122.24,122.2,7.42367653]
[1766599054947,6.6,122.24,122.2,0.05437653]
[1766599055540,0.06000848,122.23,122.2,0.05437653]
[1766599057736,0.06000848,122.23,122.2,7.42347653]
[1766599063248,8.48e-06,122.23,122.2,7.56347653]
[1766599074554,8.48e-06,122.23,122.2,7.42347653]
[1766599074853,8.48e-06,122.23,122.2,0.05437653]
[1766599075047,6.20000848,122.23,122.2,0.05437653]
[1766599076250,6.20000848,122.23,122.16,7.3713]
[1766599076442,13.5677,122.23,122.14,1.39938466]
[1766599076765,6.2,122.22,122.17,7.3709]
[1766599077263,0.05676159,122.21,122.18,0.06152271]
[1766599077449,0.05676159,122.21,122.18,7.43202271]
[1766599077946,6.2,122.24,122.19,7.3698]
[1766599078954,0.05870839,122.23,122.19,7.3698]
[1766599080853,6.25870839,122.23,122.18,0.06152271]
[1766599082446,0.05870839,122.23,122.18,0.06152271]
[1766599083561,0.05870839,122.23,122.19,7.3699]
[1766599085563,0.05870839,122.23,122.18,7.43202271]
[1766599086160,0.05870839,122.23,122.19,7.3699]
[1766599086462,0.05870839,122.23,122.18,0.06152271]
[1766599086856,0.05870839,122.23,122.14,6.27]
[1766599087055,2.18889057,122.24,122.14,6.27]
[1766599087457,2.18889057,122.22,122.14,6.27]
[1766599087964,0.05501326,122.19,122.17,0.00218002]
[1766599097270,6.08501326,122.19,122.17,0.00218002]
[1766599104071,0.05501326,122.19,122.17,0.00218002]
[1766599104570,6.03,122.23,122.17,0.00218002]
[1766599104764,6.03,122.25,122.16,6.27]
[1766599104969,6.03,122.25,122.13,2.18889057]
[1766599104970,6.03,122.25,122.2,6.27]
[1766599105278,6.03,122.25,122.16,6.27]
[1766599105476,0.05263657,122.22,122.19,0.0593234]
[1766599106768,0.05263657,122.22,122.19,7.4292234]
[1766599107069,0.05263657,122.22,122.19,13.6992234]
[1766599114574,0.05263657,122.22,122.19,7.4292234]
[1766599114772,0.00263657,122.22,122.2,13.2593]
[1766599114969,5.88,122.29,122.21,5.89]
[1766599115471,5.88,122.29,122.23,7.3669]
[1766599116073,0.05539542,122.27,122.25,0.05479047]
[1766599119977,13.2427,122.31,122.25,5.94479047]
[1766599120182,5.88,122.3,122.25,5.94479047]
[1766599120977,5.93247031,122.29,122.25,0.05479047]
[1766599123583,13.29657031,122.29,122.25,0.05479047]
[1766599124087,6.32,122.28,122.25,0.05479047]
[1766599148805,6.46,122.27,122.25,0.00479047]
[1766599150102,6.51247031,122.29,122.25,0.00479047]
[1766599150994,13.87637031,122.29,122.25,0.00479047]
[1766599151208,6.46,122.28,122.25,0.00479047]
[1766599151405,6.46,122.28,122.21,6.08]
[1766599152103,7.85947368,122.28,122.21,6.08]
[1766599152301,7.85947368,122.26,122.19,7.3694]
[1766599152504,26.62112659,122.32,122.19,7.3694]
[1766599152505,0.05733881,122.24,122.21,0.05665589]
[1766599152708,0.05866739,122.24,122.21,0.06069421]
[1766599153212,6.51866739,122.24,122.21,0.06069421]
[1766599153406,6.51866739,122.24,122.21,0.00069421]
[1766599154310,0.05866739,122.24,122.21,0.00069421]
[1766599154602,6.51866739,122.24,122.21,0.00069421]
[1766599155007,6.51866739,122.24,122.18,6.08]
[1766599155304,6.46,122.17,122.09,6.08]
[1766599155508,7.85947368,122.17,122.09,6.08]
[1766599155896,0.05239353,122.14,122.12,0.05526663]
[1766599156906,0.00239353,122.14,122.12,6.13526663]
[1766599159212,0.00239353,122.14,122.12,0.05526663]
[1766599160412,0.00239353,122.14,122.08,6.08]
[1766599160613,7.85947368,122.15,122.08,6.08]
[1766599161211,0.05863382,122.13,122.1,0.05840442]
[1766599164910,6.51863382,122.13,122.06,11.01593812]
[1766599165420,0.05863382,122.13,122.07,6.08]
[1766599165614,6.51863382,122.13,122.07,6.08]
[1766599166020,7.9181075,122.13,122.09,0.05153618]
[1766599166414,7.9181075,122.13,122.09,0.00153618]
[1766599168624,7.9181075,122.13,122.06,4.93593812]
[1766599168625,7.85947368,122.11,122.06,4.93593812]
[1766599168825,7.85947368,122.09,122.03,6.08]
[1766599169823,0.06121246,122.07,122.05,0.05623]
[1766599170326,0.06121246,122.07,122.02,62.0]
[1766599170327,6.52121246,122.07,122.02,62.0]
[1766599170824,6.52121246,122.07,122.01,6.08]
[1766599171418,7.92068614,122.07,122.03,0.05643442]
[1766599174220,7.92068614,122.07,122.0,62.0]
[1766599175225,6.59,122.0,121.92,6.4]
[1766599175426,7.98947368,121.99,121.92,6.4]
[1766599175831,6.59,122.08,121.92,6.4]
[1766599176023,14.7532,122.09,121.92,6.4]
[1766599176024,7.98947368,122.01,121.92,6.4]
[1766599176324,7.98947368,122.01,121.91,1.39947368]
[1766599176325,0.05805612,121.98,121.95,0.05386494]
[1766599176728,6.59,122.04,121.98,6.4]
[1766599176928,1.39947368,122.07,121.98,6.4]
[1766599177227,7.98947368,122.07,121.98,6.4]
[1766599177426,7.98947368,122.05,121.98,6.4]
[1766599177623,6.59,122.05,121.98,6.4]
[1766599177823,0.05664145,122.03,122.0,0.06219361]
[1766599181531,6.59,122.08,122.0,6.46219361]
[1766599181728,6.59,122.12,122.02,1.39947368]
[1766599181926,6.59,122.12,122.05,7.3782]
[1766599182121,6.59,122.12,122.05,6.34]
[1766599182530,0.0613683,122.1,122.07,0.06186256]
[1766599184431,0.0613683,122.1,122.07,0.00186256]
[1766599184432,7.71084198,122.1,122.07,0.00186256]
[1766599184627,6.3113683,122.1,122.07,0.00186256]
[1766599184827,7.71084198,122.1,122.07,0.00186256]
[1766599189538,6.3113683,122.1,122.07,0.00186256]
[1766599190234,0.0613683,122.1,122.07,0.00186256]
[1766599190436,6.25,122.14,122.07,0.00186256]
[1766599190739,7.64947368,122.14,122.06,6.34]
[1766599191034,13.6238,122.13,122.06,6.34]
[1766599191232,6.25,122.12,122.04,6.34]
[1766599191423,6.25,122.12,121.98,29.7247]
[1766599191424,0.05954324,122.09,122.07,0.00050803]
[1766599191628,6.25,122.1,122.02,7.73947368]
[1766599192145,6.25,122.09,122.02,7.73947368]
[1766599192436,6.30221922,122.07,122.04,0.00053512]
[1766599192631,6.30221922,122.07,122.0,6.34]
[1766599192632,6.25,122.07,122.0,13.7213]
[1766599193238,6.25,122.07,122.0,6.34]
[1766599193432,0.0619419,122.05,122.02,0.05452035]
[1766599195238,6.3119419,122.05,122.02,0.00452035]
[1766599195542,6.3119419,122.05,121.98,62.0]
[1766599196339,6.3119419,122.05,122.0,0.05429597]
[1766599196540,6.25,122.04,122.0,0.05429597]
[1766599196946,6.25,122.04,122.0,0.00429597]
[1766599197734,6.25,122.04,121.93,32.54]
[1766599197951,6.25,122.04,121.93,6.34]
[1766599198338,6.25,122.01,121.94,7.3847]
[1766599198738,6.25,122.01,121.94,13.7247]
[1766599199039,6.25,122.04,121.97,6.34]
[1766599200149,191.7475,122.13,121.99,6.39772639]
[1766599200150,6.25,122.07,121.99,6.39772639]
[1766599200348,6.25,122.07,121.99,6.34]
[1766599200549,13.6279,122.06,121.99,6.34]
[1766599200945,13.6279,122.06,121.96,6.34]
[1766599201241,0.05472463,122.02,122.0,0.06270937]
[1766599202046,0.00472463,122.02,122.0,0.06270937]
[1766599202641,6.68,122.11,122.01,8.37]
[1766599202846,6.68,122.11,122.01,6.73]
[1766599203544,14.0558,122.1,122.01,14.1107]
[1766599203748,0.05437147,122.07,122.04,0.0617165]
[1766599204545,6.73437147,122.07,121.99,7.3816]
[1766599204747,14.0579,122.06,121.98,6.73]
[1766599204950,6.68,122.06,121.95,6.73]
[1766599205251,6.68,122.04,121.95,6.73]
[1766599205848,0.05275857,122.01,121.98,0.05740161]
[1766599207945,24.57,122.1,121.99,6.73]
[1766599207946,6.68,122.1,121.99,6.73]
[1766599208542,14.0557,122.1,122.02,7.3801]
[1766599208750,6.68,122.14,122.02,6.73]
[1766599209049,0.06115535,122.09,122.07,0.05184147]
[1766599209243,0.05773834,122.09,122.07,0.05693271]
[1766599209651,6.68,122.14,122.07,0.05693271]
[1766599210252,7.3737,122.13,122.07,0.05693271]
[1766599210646,6.68,122.13,122.07,0.05693271]
[1766599210857,49.56,122.15,122.02,6.73]
[1766599210858,7.3756,122.1,122.02,14.1101]
[1766599211356,7.3765,122.09,122.02,6.73]
[1766599211750,0.05187984,122.07,122.04,0.05179146]
[1766599212851,14.0552,122.11,122.04,0.05179146]
[1766599213160,7.3752,122.11,122.04,6.78179146]
[1766599214053,0.05188061,122.09,122.04,14.16069146]
[1766599215353,0.05188061,122.09,122.04,6.78179146]
[1766599217662,0.05188061,122.09,122.04,14.16049146]
[1766599219759,0.05188061,122.09,122.05,14.1083]
[1766599219957,0.05188061,122.09,122.05,6.73]
[1766599223367,6.73188061,122.09,122.04,0.05179146]
[1766599225373,14.10798061,122.09,122.04,0.05179146]
[1766599227380,7.3766,122.08,122.04,0.05179146]
[1766599228280,6.73188061,122.09,122.04,0.05179146]
[1766599229984,0.05188061,122.09,122.04,7.43049146]
[1766599230277,0.05188061,122.09,122.04,0.05179146]
[1766599230667,6.73188061,122.09,122.04,0.05179146]
[1766599231082,6.73188061,122.09,122.04,0.00179146]
[1766599232083,6.39,122.07,122.04,0.00179146]
[1766599233177,7.3778,122.06,122.04,0.00179146]
[1766599233379,13.82438926,122.06,122.04,0.00179146]
[1766599233573,6.44658926,122.06,122.04,0.00179146]
[1766599233774,7.3784,122.05,122.04,0.00179146]
[1766599234482,6.44658926,122.06,122.04,0.00179146]
[1766599235379,7.3784,122.05,122.04,0.00179146]
[1766599237483,7.43448926,122.06,122.04,0.00179146]
[1766599237683,0.05658926,122.06,122.04,0.00179146]
[1766599238180,7.3784,122.05,122.04,0.00179146]
[1766599238578,13.7684,122.05,122.04,0.00179146]
[1766599239179,13.7684,122.05,121.98,7.3826]
[1766599240086,0.05621944,122.03,122.0,0.05216226]
[1766599240582,6.44621944,122.03,122.0,0.00216226]
[1766599240986,6.44621944,122.03,121.95,6.55]
[1766599241186,6.39,122.03,121.95,6.55]
[1766599241587,6.39,122.03,121.96,13.9338]
[1766599241983,0.05192108,122.01,121.98,0.06130272]
[1766599242386,6.39,122.05,121.98,0.06130272]
[1766599242586,6.39,122.05,121.97,14.0532]
[1766599242981,7.3796,122.03,121.97,14.0532]
[1766599243489,0.05515985,122.01,121.99,0.05529899]
[1766599250404,14.753,122.09,121.99,6.72529899]
[1766599250405,7.3789,122.05,121.99,6.72529899]
[1766599250609,7.3789,122.05,121.99,6.67]
[1766599251606,0.06132555,122.03,122.01,0.06199517]
[1766599252299,7.03132555,122.03,121.93,72.01295913]
[1766599252505,6.97,122.03,121.94,6.67]
[1766599253407,0.05807997,122.0,121.97,0.05704081]
[1766599257301,6.97,122.03,121.97,6.72704081]
[1766599258211,0.05654201,122.01,121.97,6.72704081]
[1766599260710,0.05654201,122.01,121.97,0.05704081]
[1766599260916,7.02654201,122.01,121.97,0.05704081]
[1766599262014,0.05654201,122.01,121.97,0.05704081]
[1766599265508,0.05654201,122.01,121.97,6.55704081]
[1766599271423,0.05654201,122.01,121.97,0.05704081]
[1766599271723,7.43744201,122.01,121.97,0.05704081]
[1766599272219,0.05654201,122.01,121.97,6.55704081]
[1766599275026,7.3796,122.04,121.98,6.5]
[1766599275714,14.3396,122.04,121.98,6.5]
[1766599275921,7.38,122.03,121.98,6.5]
[1766599276124,0.06114944,122.02,121.99,0.06146934]
[1766599276928,7.44134944,122.02,121.99,0.06146934]
[1766599278930,0.06114944,122.02,121.99,0.06146934]
[1766599284937,6.96,122.08,121.99,7.96730173]
[1766599285128,6.96,122.08,121.99,7.90583239]
[1766599286033,0.05205684,122.05,122.02,0.05173869]
[1766599288228,0.05205684,122.05,122.02,7.43173869]
[1766599288426,0.05205684,122.05,122.02,13.93173869]
[1766599288631,14.3371,122.08,122.02,13.93173869]
[1766599289535,0.06000755,122.06,122.02,13.93173869]
[1766599290344,14.336,122.1,122.04,6.5]
[1766599291238,0.06054964,122.08,122.06,0.05840565]
[1766599291944,7.3748,122.11,122.06,0.05840565]
[1766599292945,0.05395464,122.1,122.06,0.05840565]
[1766599296342,0.05395464,122.1,122.06,6.31840565]
[1766599297041,0.05395464,122.1,122.06,13.69600565]
[1766599297943,0.05395464,122.1,122.06,6.31840565]
[1766599300243,0.00395464,122.1,122.07,6.26]
[1766599301551,0.00395464,122.1,122.08,7.3765]
[1766599301742,0.00395464,122.1,122.08,13.6365]
[1766599304743,6.78,122.16,122.1,6.22]
[1766599305452,6.61,122.18,122.11,6.22]
[1766599305843,0.05351918,122.16,122.13,0.05835918]
[1766599311351,0.00351918,122.16,122.13,6.27835918]
[1766599311542,0.00351918,122.16,122.13,7.68419157]
[1766599311749,0.00351918,122.16,122.14,13.593]
[1766599312851,0.00351918,122.16,122.14,6.22]
[1766599313050,0.00351918,122.16,122.13,0.05835918]
[1766599316944,0.00351918,122.16,122.13,6.27835918]
[1766599318353,8.01935157,122.16,122.07,6.22]
[1766599318555,8.01583239,122.16,122.07,6.22]
[1766599319351,0.05834615,122.13,122.1,0.05407589]
[1766599319556,0.05834615,122.13,122.1,7.42937589]
[1766599320542,6.61,122.16,122.1,13.64937589]
[1766599320757,8.01583239,122.19,122.12,6.22]
[1766599321643,0.05940439,122.17,122.14,0.05983889]
[1766599327054,14.19060439,122.17,122.1,6.3]
[1766599328057,14.19060439,122.17,122.06,2.19117072]
[1766599328058,0.05940439,122.17,122.12,6.35899096]
[1766599328260,0.05234677,122.16,122.12,6.35899096]
[1766599329760,0.05234677,122.16,122.12,13.73309096]
[1766599332954,0.05234677,122.16,122.12,6.35899096]
[1766599343064,0.00234677,122.16,122.12,6.35899096]
[1766599343956,0.00234677,122.16,122.14,6.3]
[1766599344869,7.3681,122.23,122.16,6.3]
[1766599345272,14.1281,122.23,122.16,6.3]
[1766599346072,0.05763791,122.21,122.18,0.06234167]
[1766599350778,7.3682,122.22,122.18,0.06234167]
[1766599350779,7.3676,122.23,122.18,6.22234167]
[1766599351976,0.06171743,122.22,122.18,6.22234167]
[1766599357878,0.06171743,122.22,122.18,0.06234167]
[1766599358085,14.04991743,122.22,122.18,0.06234167]
[1766599358281,6.68171743,122.22,122.18,0.06234167]
[1766599358980,0.06171743,122.22,122.18,6.55234167]
[1766599362485,7.42991743,122.22,122.18,6.55234167]
[1766599362682,7.42991743,122.22,122.18,6.49]
[1766599362887,0.06171743,122.22,122.15,7.3723]
[1766599363087,7.42991743,122.22,122.15,7.3723]
[1766599363287,7.42991743,122.22,122.13,10.01295913]
[1766599363587,7.3682,122.22,122.13,10.01295913]
[1766599363786,0.05799404,122.19,122.16,0.05195434]
[1766599364188,7.3682,122.22,122.16,0.05195434]
[1766599364586,7.3682,122.22,122.16,7.42355434]
[1766599364788,7.3682,122.22,122.16,13.91355434]
[1766599365188,0.05615519,122.2,122.16,13.91355434]
[1766599366287,0.05615519,122.2,122.16,6.54195434]
[1766599366676,0.05615519,122.2,122.12,6.38]
[1766599366677,7.371,122.18,122.12,6.38]
[1766599366875,6.48,122.19,122.12,6.38]
[1766599367281,13.85,122.19,122.12,6.38]
[1766599367679,0.05328517,122.17,122.14,0.06087403]
[1766599369287,0.05328517,122.17,122.14,6.44087403]
[1766599373598,0.05328517,122.17,122.1,6.38]
[1766599373599,6.53328517,122.17,122.1,6.38]
[1766599374403,7.372,122.16,122.1,6.38]
[1766599374596,0.05235538,122.14,122.12,0.0614993]
[1766599386608,0.00235538,122.14,122.12,6.6314993]
[1766599391308,0.00235538,122.14,122.12,0.0614993]
[1766599398021,0.00235538,122.14,122.07,6.57]
[1766599398022,6.62,122.13,122.07,6.57]
[1766599398418,8.02241611,122.12,122.07,6.57]
[1766599399027,0.06241961,122.11,122.08,0.0521892]
[1766599404837,0.06241961,122.11,122.08,6.6221892]
[1766599413342,0.00241961,122.11,122.08,6.6221892]
[1766599414637,0.00241961,122.11,122.08,8.02460531]
[1766599415640,0.00241961,122.11,122.1,6.62]
[1766599417539,0.00241961,122.11,122.09,7.376]
[1766599417736,0.00241961,122.11,122.08,0.0521892]